[Event "*** Titled Tuesday Blitz"]
[Site "Chess.com"]
[Date "2021.03.09"]
[Round "11"]
[White "IECS12"]
[Black "ChronicUnhappiness"]
[Result "1-0"]
[WhiteElo "2233"]
[BlackElo "2317"]
[TimeControl "180+1"]
[EndTime "12:09:29 PST"]
[Termination "IECS12 won by resignation"]

1. d4 {[%clk 0:03:00.9]} 1... Nf6 {[%clk 0:03:00.9]} 2. Bf4 {[%clk 0:03:00.9]}
2... e6 {[%clk 0:03:00]} 3. e3 {[%clk 0:03:00.7]} 3... Bd6 {[%clk 0:03:00.9]} 4.
Bg3 {[%clk 0:03:00.2]} 4... Bxg3 {[%clk 0:02:58.5]} 5. hxg3 {[%clk 0:03:01.1]}
5... d6 {[%clk 0:02:57.4]} 6. Nd2 {[%clk 0:03:01.5]} 6... e5 {[%clk 0:02:56.8]}
7. dxe5 {[%clk 0:02:48.9]} 7... dxe5 {[%clk 0:02:56.4]} 8. Nc4 {[%clk 0:02:47]}
8... Qxd1+ {[%clk 0:02:51.8]} 9. Rxd1 {[%clk 0:02:47.9]} 9... Nc6 {[%clk
0:02:51.9]} 10. Nf3 {[%clk 0:02:46.9]} 10... Bg4 {[%clk 0:02:45.8]} 11. Be2
{[%clk 0:02:43.4]} 11... e4 {[%clk 0:02:43.5]} 12. Nd4 {[%clk 0:02:37.9]} 12...
Nxd4 {[%clk 0:02:25.4]} 13. Rxd4 {[%clk 0:02:36.7]} 13... Be6 {[%clk 0:02:23.9]}
14. a4 {[%clk 0:02:06.6]} 14... Ke7 {[%clk 0:02:14.2]} 15. O-O {[%clk
0:01:59.9]} 15... Rhd8 {[%clk 0:01:36.4]} 16. Rfd1 {[%clk 0:01:59]} 16... Rxd4
{[%clk 0:01:14.6]} 17. Rxd4 {[%clk 0:01:59.9]} 17... Rd8 {[%clk 0:01:07.5]} 18.
c3 {[%clk 0:01:50.2]} 18... c5 {[%clk 0:00:59.3]} 19. Rxd8 {[%clk 0:01:47.8]}
19... Kxd8 {[%clk 0:01:00.2]} 20. f3 {[%clk 0:01:31.4]} 20... Kc7 {[%clk
0:00:54.5]} 21. Kf2 {[%clk 0:01:29.9]} 21... Nd7 {[%clk 0:00:40.7]} 22. Nd2
{[%clk 0:01:20.1]} 22... exf3 {[%clk 0:00:33.5]} 23. gxf3 {[%clk 0:01:21]} 23...
h5 {[%clk 0:00:24.7]} 24. f4 {[%clk 0:01:16.4]} 24... g6 {[%clk 0:00:20.6]} 25.
e4 {[%clk 0:01:16.5]} 25... a5 {[%clk 0:00:17]} 26. Ke3 {[%clk 0:01:16]} 26...
Nb6 {[%clk 0:00:14.7]} 27. Bb5 {[%clk 0:01:06.5]} 27... Nc8 {[%clk 0:00:10.8]}
28. Nf3 {[%clk 0:00:59.1]} 28... Nd6 {[%clk 0:00:10.2]} 29. Ng5 {[%clk
0:00:53.2]} 29... Nxb5 {[%clk 0:00:08.1]} 30. axb5 {[%clk 0:00:54.1]} 30... Bc4
{[%clk 0:00:07.1]} 31. e5 {[%clk 0:00:48]} 31... Kb6 {[%clk 0:00:06.9]} 32. Ne4
{[%clk 0:00:41.5]} 32... Kxb5 {[%clk 0:00:05.5]} 33. Nd6+ {[%clk 0:00:41.2]}
33... Ka4 {[%clk 0:00:06.2]} 34. Nxc4 {[%clk 0:00:41.2]} 34... Kb3 {[%clk
0:00:07.1]} 35. Nxa5+ {[%clk 0:00:35]} 35... Kxb2 {[%clk 0:00:04.4]} 36. Nxb7
{[%clk 0:00:35.5]} 36... c4 {[%clk 0:00:03.5]} 1-0

[Event "*** Titled Tuesday Blitz"]
[Site "Chess.com"]
[Date "2021.03.09"]
[Round "11"]
[White "Milchone1"]
[Black "AsaHoffmann"]
[Result "1-0"]
[WhiteElo "2531"]
[BlackElo "2413"]
[TimeControl "180+1"]
[EndTime "12:09:30 PST"]
[Termination "Milchone1 won by resignation"]

1. Nf3 {[%clk 0:03:00.9]} 1... d6 {[%clk 0:02:59]} 2. d4 {[%clk 0:03:00.7]} 2...
Bg4 {[%clk 0:02:54.2]} 3. c4 {[%clk 0:03:01.6]} 3... Nd7 {[%clk 0:02:52.8]} 4.
Nc3 {[%clk 0:03:01.4]} 4... e5 {[%clk 0:02:52.4]} 5. d5 {[%clk 0:02:54.6]} 5...
Ngf6 {[%clk 0:02:49.6]} 6. h3 {[%clk 0:02:54.4]} 6... Bxf3 {[%clk 0:02:48.1]} 7.
exf3 {[%clk 0:02:55.3]} 7... Be7 {[%clk 0:02:46.6]} 8. g3 {[%clk 0:02:54.5]}
8... O-O {[%clk 0:02:45.4]} 9. Bg2 {[%clk 0:02:54.9]} 9... a5 {[%clk 0:02:45]}
10. O-O {[%clk 0:02:54.7]} 10... Nc5 {[%clk 0:02:45]} 11. b3 {[%clk 0:02:49.4]}
11... Nfd7 {[%clk 0:02:44.6]} 12. Bb2 {[%clk 0:02:44.8]} 12... Bg5 {[%clk
0:02:43.9]} 13. Ne4 {[%clk 0:02:43.6]} 13... Bh6 {[%clk 0:02:41.2]} 14. Re1
{[%clk 0:02:36.9]} 14... f5 {[%clk 0:02:38.7]} 15. Nxc5 {[%clk 0:02:36.8]} 15...
Nxc5 {[%clk 0:02:38]} 16. Ba3 {[%clk 0:02:35.7]} 16... b6 {[%clk 0:02:36.7]} 17.
Bxc5 {[%clk 0:02:35.1]} 17... bxc5 {[%clk 0:02:36.3]} 18. Bf1 {[%clk 0:02:32.6]}
18... Qd7 {[%clk 0:02:35.6]} 19. Kg2 {[%clk 0:02:31.4]} 19... a4 {[%clk
0:02:35.2]} 20. Bd3 {[%clk 0:02:29.9]} 20... g6 {[%clk 0:02:31.9]} 21. h4 {[%clk
0:02:29]} 21... Bg7 {[%clk 0:02:31.1]} 22. Rb1 {[%clk 0:02:26.4]} 22... Rfb8
{[%clk 0:02:28]} 23. Qc2 {[%clk 0:02:23.6]} 23... c6 {[%clk 0:02:23]} 24. h5
{[%clk 0:02:19.3]} 24... cxd5 {[%clk 0:02:21.2]} 25. cxd5 {[%clk 0:02:20.2]}
25... Rb4 {[%clk 0:02:17.5]} 26. hxg6 {[%clk 0:02:17.1]} 26... hxg6 {[%clk
0:02:16.9]} 27. Bc4 {[%clk 0:02:16.9]} 27... axb3 {[%clk 0:02:07.2]} 28. axb3
{[%clk 0:02:15.3]} 28... Rbb8 {[%clk 0:02:04.1]} 29. Ra1 {[%clk 0:02:15]} 29...
Kf7 {[%clk 0:02:02.2]} 30. Qd2 {[%clk 0:02:00.1]} 30... Kf6 {[%clk 0:01:57.7]}
31. Rh1 {[%clk 0:01:58.9]} 31... Rxa1 {[%clk 0:01:53.7]} 32. Rxa1 {[%clk
0:01:58]} 32... Rb7 {[%clk 0:01:43.9]} 33. Ra8 {[%clk 0:01:55.4]} 33... Ra7
{[%clk 0:01:35.3]} 34. Rb8 {[%clk 0:01:49.7]} 34... Rb7 {[%clk 0:01:33.4]} 35.
Ra8 {[%clk 0:01:45.7]} 35... Ra7 {[%clk 0:01:33.1]} 36. Bb5 {[%clk 0:01:43.3]}
36... Qc7 {[%clk 0:01:17.8]} 37. Re8 {[%clk 0:01:42.2]} 37... Kf7 {[%clk
0:00:56.6]} 38. Re6 {[%clk 0:01:39.1]} 38... Qd8 {[%clk 0:00:52.3]} 39. Be8+
{[%clk 0:01:38]} 39... Qxe8 {[%clk 0:00:50.7]} 40. Rxe8 {[%clk 0:01:37.8]} 40...
Kxe8 {[%clk 0:00:50.7]} 41. Qg5 {[%clk 0:01:38.2]} 41... Kf7 {[%clk 0:00:50.6]}
42. Qd8 {[%clk 0:01:38]} 42... Bf8 {[%clk 0:00:50]} 43. Qc8 {[%clk 0:01:37]}
43... Be7 {[%clk 0:00:43.1]} 44. Qe6+ {[%clk 0:01:36.3]} 44... Kg7 {[%clk
0:00:42.9]} 45. g4 {[%clk 0:01:34.6]} 45... fxg4 {[%clk 0:00:36.8]} 46. fxg4
{[%clk 0:01:34.4]} 46... Rb7 {[%clk 0:00:36.6]} 47. f3 {[%clk 0:01:23.2]} 47...
Bf8 {[%clk 0:00:36.5]} 48. g5 {[%clk 0:01:17.9]} 48... Rxb3 {[%clk 0:00:34.1]}
49. Qf6+ {[%clk 0:01:17.5]} 49... Kg8 {[%clk 0:00:32.7]} 50. Qxg6+ {[%clk
0:01:17.9]} 50... Kh8 {[%clk 0:00:31.7]} 51. Qf7 {[%clk 0:01:15.9]} 51... Bg7
{[%clk 0:00:27.6]} 52. g6 {[%clk 0:01:14.7]} 52... Rb8 {[%clk 0:00:27.2]} 53.
Qd7 {[%clk 0:01:11.7]} 53... c4 {[%clk 0:00:22.9]} 54. Qxd6 {[%clk 0:01:08.8]}
54... Rc8 {[%clk 0:00:20.3]} 55. Qd7 {[%clk 0:01:07.7]} 55... Rc5 {[%clk
0:00:19]} 56. Qe8+ {[%clk 0:01:07]} 1-0

[Event "*** Titled Tuesday Blitz"]
[Site "Chess.com"]
[Date "2021.03.09"]
[Round "11"]
[White "PaulfromSPb"]
[Black "ChessWarrior7197"]
[Result "1-0"]
[WhiteElo "2755"]
[BlackElo "2910"]
[TimeControl "180+1"]
[EndTime "12:09:32 PST"]
[Termination "PaulfromSPb won by checkmate"]

1. e4 {[%clk 0:02:58.5]} 1... c6 {[%clk 0:02:59.4]} 2. d4 {[%clk 0:02:58.1]}
2... d5 {[%clk 0:03:00.3]} 3. Nd2 {[%clk 0:02:58.8]} 3... dxe4 {[%clk
0:02:59.8]} 4. Nxe4 {[%clk 0:02:59.7]} 4... Bf5 {[%clk 0:02:59.6]} 5. Ng3 {[%clk
0:02:59.1]} 5... Bg6 {[%clk 0:02:59.4]} 6. Nh3 {[%clk 0:02:59.4]} 6... e6 {[%clk
0:02:57.9]} 7. Nf4 {[%clk 0:02:59.4]} 7... Bd6 {[%clk 0:02:57.9]} 8. h4 {[%clk
0:02:57.3]} 8... Bxf4 {[%clk 0:02:39.4]} 9. Bxf4 {[%clk 0:02:56.3]} 9... h6
{[%clk 0:02:40.3]} 10. Be2 {[%clk 0:02:53.4]} 10... Nd7 {[%clk 0:02:39]} 11. c4
{[%clk 0:02:50.9]} 11... Ngf6 {[%clk 0:02:38.4]} 12. Bd6 {[%clk 0:02:49]} 12...
Nb6 {[%clk 0:02:34.1]} 13. Ba3 {[%clk 0:02:46.6]} 13... Qc7 {[%clk 0:02:28.2]}
14. h5 {[%clk 0:02:42]} 14... Bh7 {[%clk 0:02:27.7]} 15. O-O {[%clk 0:02:40]}
15... O-O-O {[%clk 0:02:28]} 16. Rc1 {[%clk 0:02:38.5]} 16... Qf4 {[%clk
0:02:24.1]} 17. Bc5 {[%clk 0:02:36.7]} 17... Nfd7 {[%clk 0:02:22.7]} 18. Be7
{[%clk 0:02:34.7]} 18... Rde8 {[%clk 0:02:22.9]} 19. Bb4 {[%clk 0:02:33.4]}
19... Kb8 {[%clk 0:02:08.7]} 20. Rc3 {[%clk 0:02:29.4]} 20... Nc8 {[%clk
0:02:07.1]} 21. Rf3 {[%clk 0:02:27.8]} 21... Qg5 {[%clk 0:02:00.6]} 22. Rxf7
{[%clk 0:02:27.6]} 22... Ndb6 {[%clk 0:01:41.6]} 23. Bd2 {[%clk 0:02:20.6]}
23... Qh4 {[%clk 0:01:37.8]} 24. Bf4+ {[%clk 0:02:18.7]} 24... Ka8 {[%clk
0:01:34.6]} 25. Be3 {[%clk 0:02:16.2]} 25... Nd6 {[%clk 0:01:26.4]} 26. Rxg7
{[%clk 0:02:14.7]} 26... Ndxc4 {[%clk 0:01:25.4]} 27. Bxc4 {[%clk 0:02:12.9]}
27... Nxc4 {[%clk 0:01:26]} 28. Qb3 {[%clk 0:02:10.4]} 28... Nd6 {[%clk
0:01:03.3]} 29. Qa3 {[%clk 0:02:07]} 29... Nc8 {[%clk 0:00:56.8]} 30. Rf7 {[%clk
0:02:04.4]} 30... Reg8 {[%clk 0:00:41.3]} 31. Qb3 {[%clk 0:01:59.8]} 31... Nd6
{[%clk 0:00:39.8]} 32. Rd7 {[%clk 0:01:59.2]} 32... Rd8 {[%clk 0:00:37.8]} 33.
Rc7 {[%clk 0:01:55.7]} 33... Nb5 {[%clk 0:00:36.9]} 34. Rf7 {[%clk 0:01:53.8]}
34... Nd6 {[%clk 0:00:36.1]} 35. Rf4 {[%clk 0:01:50]} 35... Qe7 {[%clk 0:00:35]}
36. Qa3 {[%clk 0:01:48.5]} 36... Qc7 {[%clk 0:00:25.5]} 37. Rc1 {[%clk
0:01:44.4]} 37... Rhg8 {[%clk 0:00:22.6]} 38. d5 {[%clk 0:01:41.4]} 38... Nb5
{[%clk 0:00:22.3]} 39. Qc5 {[%clk 0:01:40]} 39... Rxd5 {[%clk 0:00:20.1]} 40.
Rf8+ {[%clk 0:01:36.8]} 40... Rxf8 {[%clk 0:00:19.1]} 41. Qxf8+ {[%clk
0:01:37.7]} 41... Rd8 {[%clk 0:00:19.7]} 42. Qxh6 {[%clk 0:01:37.9]} 42... Bf5
{[%clk 0:00:16.2]} 43. a4 {[%clk 0:01:37.7]} 43... Nd6 {[%clk 0:00:15.6]} 44.
Qf4 {[%clk 0:01:37.5]} 44... Qe7 {[%clk 0:00:07.6]} 45. Qd4 {[%clk 0:01:37.4]}
45... Nc8 {[%clk 0:00:07.1]} 46. Qe5 {[%clk 0:01:36.4]} 46... Rd5 {[%clk
0:00:06.6]} 47. Qh8 {[%clk 0:01:34.7]} 47... Rd8 {[%clk 0:00:06.4]} 48. Qe5
{[%clk 0:01:34.5]} 48... Rd5 {[%clk 0:00:06.3]} 49. Qf4 {[%clk 0:01:35]} 49...
Bh7 {[%clk 0:00:04.3]} 50. h6 {[%clk 0:01:33.3]} 50... Rd8 {[%clk 0:00:04.2]}
51. a5 {[%clk 0:01:30.9]} 51... e5 {[%clk 0:00:04.4]} 52. Qa4 {[%clk 0:01:28.3]}
52... a6 {[%clk 0:00:04.4]} 53. Ne4 {[%clk 0:01:25.6]} 53... Bxe4 {[%clk
0:00:03.6]} 54. Qd4 {[%clk 0:01:25.1]} 54... Nd6 {[%clk 0:00:04.5]} 55. Qa7#
{[%clk 0:01:24.2]} 1-0

[Event "*** Titled Tuesday Blitz"]
[Site "Chess.com"]
[Date "2021.03.09"]
[Round "11"]
[White "Vugar_Manafov"]
[Black "IMAghasiyevKamal"]
[Result "1-0"]
[WhiteElo "2661"]
[BlackElo "2493"]
[TimeControl "180+1"]
[EndTime "12:09:33 PST"]
[Termination "Vugar_Manafov won by resignation"]

1. Nf3 {[%clk 0:03:00.9]} 1... d5 {[%clk 0:02:57.2]} 2. g3 {[%clk 0:03:00.7]}
2... Nf6 {[%clk 0:02:57.4]} 3. Bg2 {[%clk 0:02:59.7]} 3... e6 {[%clk 0:02:57.4]}
4. O-O {[%clk 0:02:56.9]} 4... Be7 {[%clk 0:02:56.9]} 5. d3 {[%clk 0:02:55.1]}
5... c5 {[%clk 0:02:54.6]} 6. Nc3 {[%clk 0:02:55.7]} 6... Nc6 {[%clk 0:02:51.5]}
7. e4 {[%clk 0:02:51.3]} 7... O-O {[%clk 0:02:46.1]} 8. h3 {[%clk 0:02:48.7]}
8... b6 {[%clk 0:02:38.9]} 9. Nd2 {[%clk 0:02:42.8]} 9... Bb7 {[%clk 0:02:35.3]}
10. f4 {[%clk 0:02:37.5]} 10... dxe4 {[%clk 0:02:22.9]} 11. dxe4 {[%clk
0:02:35]} 11... e5 {[%clk 0:02:05.4]} 12. Nd5 {[%clk 0:02:22.2]} 12... exf4
{[%clk 0:02:01]} 13. Nxe7+ {[%clk 0:02:03.6]} 13... Qxe7 {[%clk 0:01:36.9]} 14.
gxf4 {[%clk 0:02:02.2]} 14... Rad8 {[%clk 0:01:37.3]} 15. c3 {[%clk 0:02:00.9]}
15... c4 {[%clk 0:01:00.4]} 16. Qe2 {[%clk 0:01:45.8]} 16... b5 {[%clk 0:00:54]}
17. e5 {[%clk 0:01:39.4]} 17... Nd5 {[%clk 0:00:44.1]} 18. Ne4 {[%clk
0:01:39.4]} 18... f6 {[%clk 0:00:43.3]} 19. exf6 {[%clk 0:01:28.3]} 19... Nxf6
{[%clk 0:00:42.4]} 20. Nxf6+ {[%clk 0:01:28.3]} 20... Qxf6 {[%clk 0:00:41.3]}
21. Be3 {[%clk 0:01:25.8]} 21... Rfe8 {[%clk 0:00:36.4]} 22. Qf2 {[%clk
0:01:25]} 22... Rd3 {[%clk 0:00:32.8]} 23. Rae1 {[%clk 0:01:21]} 23... a6 {[%clk
0:00:25.3]} 24. Bc5 {[%clk 0:01:17.7]} 24... Red8 {[%clk 0:00:23.1]} 25. Re2
{[%clk 0:01:13.4]} 25... h6 {[%clk 0:00:22.6]} 26. Rfe1 {[%clk 0:01:12.2]} 26...
Rd1 {[%clk 0:00:20]} 27. Rxd1 {[%clk 0:01:10.3]} 27... Rxd1+ {[%clk 0:00:19.2]}
28. Kh2 {[%clk 0:01:11.2]} 28... Rd8 {[%clk 0:00:17.1]} 29. f5 {[%clk
0:01:05.3]} 29... Na5 {[%clk 0:00:11.9]} 30. Bb6 {[%clk 0:00:38.1]} 30... Bxg2
{[%clk 0:00:08.1]} 31. Bxd8 {[%clk 0:00:37.2]} 31... Qxd8 {[%clk 0:00:07.6]} 32.
Qxg2 {[%clk 0:00:37.7]} 32... Qd6+ {[%clk 0:00:05]} 33. Qg3 {[%clk 0:00:38]}
33... Qf6 {[%clk 0:00:04.4]} 34. Qg6 {[%clk 0:00:36.6]} 1-0

[Event "*** Titled Tuesday Blitz"]
[Site "Chess.com"]
[Date "2021.03.09"]
[Round "11"]
[White "ckgchess"]
[Black "MatyChess1"]
[Result "1-0"]
[WhiteElo "2761"]
[BlackElo "2589"]
[TimeControl "180+1"]
[EndTime "12:09:34 PST"]
[Termination "ckgchess won by checkmate"]

1. d4 {[%clk 0:03:00.9]} 1... d5 {[%clk 0:03:00.1]} 2. c4 {[%clk 0:03:00.3]}
2... e6 {[%clk 0:03:00.7]} 3. Nf3 {[%clk 0:02:57.8]} 3... Nf6 {[%clk 0:03:00.7]}
4. g3 {[%clk 0:02:57.5]} 4... Be7 {[%clk 0:02:54.5]} 5. Bg2 {[%clk 0:02:57.2]}
5... O-O {[%clk 0:02:55.1]} 6. Nc3 {[%clk 0:02:56.7]} 6... dxc4 {[%clk
0:02:51.3]} 7. Ne5 {[%clk 0:02:55]} 7... c5 {[%clk 0:02:40.2]} 8. dxc5 {[%clk
0:02:54.5]} 8... Qc7 {[%clk 0:02:37.8]} 9. Nxc4 {[%clk 0:02:49.5]} 9... Qxc5
{[%clk 0:02:37.8]} 10. b3 {[%clk 0:02:38.3]} 10... Qh5 {[%clk 0:02:28.1]} 11.
O-O {[%clk 0:02:34.1]} 11... Rd8 {[%clk 0:02:21.6]} 12. Qc2 {[%clk 0:02:31.5]}
12... Nc6 {[%clk 0:02:20.7]} 13. Bxc6 {[%clk 0:01:41.1]} 13... bxc6 {[%clk
0:02:19.6]} 14. Kg2 {[%clk 0:01:38.1]} 14... e5 {[%clk 0:02:14.5]} 15. h4 {[%clk
0:01:33.9]} 15... Qg4 {[%clk 0:01:47.5]} 16. Rh1 {[%clk 0:01:30.6]} 16... Bf5
{[%clk 0:01:17.3]} 17. Qb2 {[%clk 0:01:30]} 17... e4 {[%clk 0:00:41.6]} 18. Bg5
{[%clk 0:01:10.8]} 18... h6 {[%clk 0:00:30.7]} 19. Ne3 {[%clk 0:01:10.3]} 19...
hxg5 {[%clk 0:00:26.7]} 20. Nxg4 {[%clk 0:01:10]} 20... Nxg4 {[%clk 0:00:27]}
21. hxg5 {[%clk 0:01:05.8]} 21... Bxg5 {[%clk 0:00:25.8]} 22. Rh5 {[%clk
0:01:04.2]} 22... Rd2 {[%clk 0:00:19.1]} 23. Rah1 {[%clk 0:00:57.1]} 23... f6
{[%clk 0:00:13.9]} 24. Qa3 {[%clk 0:00:55.2]} 24... Kf7 {[%clk 0:00:08.2]} 25.
Qa6 {[%clk 0:00:53.4]} 25... Rad8 {[%clk 0:00:06.5]} 26. Rh8 {[%clk 0:00:49.4]}
26... R8d7 {[%clk 0:00:06.6]} 27. Qc4+ {[%clk 0:00:44.9]} 27... Kg6 {[%clk
0:00:04.9]} 28. Qg8 {[%clk 0:00:37.9]} 28... Rc2 {[%clk 0:00:04.6]} 29. Qh7+
{[%clk 0:00:34.2]} 29... Kf7 {[%clk 0:00:04.8]} 30. Qxf5 {[%clk 0:00:34.6]}
30... Rdd2 {[%clk 0:00:05.5]} 31. Qxg4 {[%clk 0:00:28.1]} 31... Rxc3 {[%clk
0:00:06]} 32. Qc8 {[%clk 0:00:25]} 32... Rxe2 {[%clk 0:00:04.5]} 33. Qe8# {[%clk
0:00:24.8]} 1-0

[Event "*** Titled Tuesday Blitz"]
[Site "Chess.com"]
[Date "2021.03.09"]
[Round "11"]
[White "Nuvas"]
[Black "K_A_S_T_O_R"]
[Result "0-1"]
[WhiteElo "2569"]
[BlackElo "2785"]
[TimeControl "180+1"]
[EndTime "12:09:34 PST"]
[Termination "K_A_S_T_O_R won by resignation"]

1. d4 {[%clk 0:03:00.9]} 1... Nf6 {[%clk 0:02:58.7]} 2. c4 {[%clk 0:03:01.5]}
2... g6 {[%clk 0:02:57.8]} 3. Nc3 {[%clk 0:03:01.5]} 3... Bg7 {[%clk 0:02:58.4]}
4. g3 {[%clk 0:03:01.8]} 4... d5 {[%clk 0:02:53.3]} 5. Bg2 {[%clk 0:02:59.5]}
5... dxc4 {[%clk 0:02:53.1]} 6. Nf3 {[%clk 0:02:47.7]} 6... O-O {[%clk 0:02:45]}
7. Ne5 {[%clk 0:02:47.6]} 7... c5 {[%clk 0:02:42.8]} 8. dxc5 {[%clk 0:02:37.1]}
8... Qc7 {[%clk 0:02:30.6]} 9. Nxc4 {[%clk 0:02:27.4]} 9... Qxc5 {[%clk
0:02:30.4]} 10. Ne3 {[%clk 0:02:11.1]} 10... Nc6 {[%clk 0:02:28.6]} 11. O-O
{[%clk 0:02:09.1]} 11... Rd8 {[%clk 0:02:28.5]} 12. Qa4 {[%clk 0:02:09.3]} 12...
Nd4 {[%clk 0:02:23.5]} 13. Rd1 {[%clk 0:02:02.1]} 13... e5 {[%clk 0:02:14.8]}
14. Bd2 {[%clk 0:01:58.9]} 14... Bd7 {[%clk 0:02:12.2]} 15. Qc4 {[%clk
0:01:59.1]} 15... Qd6 {[%clk 0:02:07.9]} 16. Bxb7 {[%clk 0:01:33.1]} 16... Rab8
{[%clk 0:02:04.7]} 17. Qa6 {[%clk 0:01:33.3]} 17... Qc7 {[%clk 0:01:51.1]} 18.
Bg2 {[%clk 0:01:31.8]} 18... Rxb2 {[%clk 0:01:50.8]} 19. Ncd5 {[%clk 0:01:23.9]}
19... Nxd5 {[%clk 0:01:49.4]} 20. Nxd5 {[%clk 0:01:24.3]} 20... Qb8 {[%clk
0:01:43.3]} 21. e3 {[%clk 0:01:23.1]} 21... Ne6 {[%clk 0:01:00.3]} 22. Bc3
{[%clk 0:01:15.4]} 22... Rb5 {[%clk 0:00:54.6]} 23. Ne7+ {[%clk 0:00:51.4]}
23... Kh8 {[%clk 0:00:49.4]} 24. Nc6 {[%clk 0:00:08.7]} 24... Bxc6 {[%clk
0:00:49]} 25. Bxc6 {[%clk 0:00:08.7]} 25... Rb6 {[%clk 0:00:47.9]} 26. Qa4
{[%clk 0:00:05.4]} 26... Nc5 {[%clk 0:00:47.2]} 27. Rxd8+ {[%clk 0:00:03.8]}
27... Qxd8 {[%clk 0:00:47.1]} 28. Qa5 {[%clk 0:00:04.4]} 28... Qc7 {[%clk
0:00:38.6]} 29. Bf3 {[%clk 0:00:04.5]} 29... e4 {[%clk 0:00:32.2]} 30. Bxg7+
{[%clk 0:00:04.3]} 30... Kxg7 {[%clk 0:00:32.3]} 31. Be2 {[%clk 0:00:05.1]}
31... Qe5 {[%clk 0:00:28.9]} 32. Rc1 {[%clk 0:00:05.7]} 32... Nd3 {[%clk
0:00:28.9]} 33. Bxd3 {[%clk 0:00:05.6]} 33... Qxa5 {[%clk 0:00:28.3]} 0-1

[Event "*** Titled Tuesday Blitz"]
[Site "Chess.com"]
[Date "2021.03.09"]
[Round "11"]
[White "BeanScreen"]
[Black "Marcin"]
[Result "0-1"]
[WhiteElo "2653"]
[BlackElo "2541"]
[TimeControl "180+1"]
[EndTime "12:09:36 PST"]
[Termination "Marcin won by resignation"]

1. e4 {[%clk 0:03:00.9]} 1... c6 {[%clk 0:02:59.9]} 2. d4 {[%clk 0:03:00.7]}
2... d5 {[%clk 0:02:59.4]} 3. exd5 {[%clk 0:03:01.6]} 3... cxd5 {[%clk
0:02:59.4]} 4. Bd3 {[%clk 0:03:01.8]} 4... Nc6 {[%clk 0:02:59]} 5. c3 {[%clk
0:03:02.4]} 5... g6 {[%clk 0:02:56.8]} 6. Bf4 {[%clk 0:03:02.2]} 6... Nf6 {[%clk
0:02:39.6]} 7. Nf3 {[%clk 0:03:01.4]} 7... Bg7 {[%clk 0:02:39.7]} 8. O-O {[%clk
0:03:01.1]} 8... O-O {[%clk 0:02:40.4]} 9. Nbd2 {[%clk 0:03:00.7]} 9... a6
{[%clk 0:02:30.2]} 10. a4 {[%clk 0:02:59.9]} 10... Nh5 {[%clk 0:02:07.8]} 11.
Bg3 {[%clk 0:02:44.2]} 11... Nxg3 {[%clk 0:02:07.4]} 12. hxg3 {[%clk 0:02:45.1]}
12... f6 {[%clk 0:02:00.6]} 13. c4 {[%clk 0:02:43.4]} 13... Be6 {[%clk 0:01:51]}
14. Re1 {[%clk 0:02:42.3]} 14... Bf7 {[%clk 0:01:51.3]} 15. Qe2 {[%clk
0:02:19.7]} 15... Nb4 {[%clk 0:01:47.1]} 16. Bb1 {[%clk 0:02:10.1]} 16... dxc4
{[%clk 0:01:44.5]} 17. Nxc4 {[%clk 0:02:03.8]} 17... Rc8 {[%clk 0:01:43.3]} 18.
Ne3 {[%clk 0:01:58.3]} 18... Qd7 {[%clk 0:01:35.2]} 19. g4 {[%clk 0:01:53]}
19... Rfe8 {[%clk 0:01:34.1]} 20. Be4 {[%clk 0:01:51.7]} 20... Rc7 {[%clk
0:01:27]} 21. d5 {[%clk 0:01:07]} 21... e6 {[%clk 0:01:12.5]} 22. Qd2 {[%clk
0:00:37.9]} 22... Nxd5 {[%clk 0:01:08.9]} 23. Rad1 {[%clk 0:00:34.7]} 23... Qxa4
{[%clk 0:01:07.3]} 24. Nxd5 {[%clk 0:00:32]} 24... exd5 {[%clk 0:01:07.5]} 25.
Bxd5 {[%clk 0:00:32.9]} 25... Rxe1+ {[%clk 0:00:57.8]} 26. Rxe1 {[%clk
0:00:33.8]} 26... Qxg4 {[%clk 0:00:32.7]} 27. Re8+ {[%clk 0:00:23.3]} 27... Bf8
{[%clk 0:00:32.8]} 28. Qh6 {[%clk 0:00:23.2]} 28... Qb4 {[%clk 0:00:32.4]} 29.
Be4 {[%clk 0:00:11.3]} 29... Bxe8 {[%clk 0:00:28.9]} 30. Qf4 {[%clk 0:00:11.2]}
30... Qd6 {[%clk 0:00:24.5]} 31. Qe3 {[%clk 0:00:10.7]} 31... Bf7 {[%clk
0:00:23.6]} 32. g3 {[%clk 0:00:10.2]} 32... Qc5 {[%clk 0:00:22.3]} 33. Qf4
{[%clk 0:00:10.1]} 33... Qc1+ {[%clk 0:00:21.5]} 34. Qxc1 {[%clk 0:00:09.1]}
34... Rxc1+ {[%clk 0:00:22.4]} 35. Kg2 {[%clk 0:00:09.7]} 35... b5 {[%clk
0:00:21.8]} 0-1

[Event "*** Titled Tuesday Blitz"]
[Site "Chess.com"]
[Date "2021.03.09"]
[Round "11"]
[White "Lion-Al-Messi"]
[Black "Margency"]
[Result "0-1"]
[WhiteElo "2515"]
[BlackElo "2711"]
[TimeControl "180+1"]
[EndTime "12:09:37 PST"]
[Termination "Margency won by resignation"]

1. d4 {[%clk 0:02:48.4]} 1... Nf6 {[%clk 0:02:59.7]} 2. Nf3 {[%clk 0:02:48.8]}
2... g6 {[%clk 0:03:00.3]} 3. Nc3 {[%clk 0:02:49.7]} 3... d5 {[%clk 0:03:00]} 4.
Ne5 {[%clk 0:02:49.7]} 4... Bg7 {[%clk 0:02:59.2]} 5. g3 {[%clk 0:02:49.9]} 5...
c5 {[%clk 0:02:58.7]} 6. Bg2 {[%clk 0:02:50.1]} 6... cxd4 {[%clk 0:02:58]} 7.
Qxd4 {[%clk 0:02:50.4]} 7... Nc6 {[%clk 0:02:58.1]} 8. Nxc6 {[%clk 0:02:49.3]}
8... bxc6 {[%clk 0:02:59]} 9. O-O {[%clk 0:02:49.4]} 9... O-O {[%clk 0:02:59]}
10. Qa4 {[%clk 0:02:49.6]} 10... Qc7 {[%clk 0:02:46.8]} 11. e4 {[%clk
0:02:46.5]} 11... e6 {[%clk 0:02:16]} 12. Bg5 {[%clk 0:02:44.2]} 12... Rb8
{[%clk 0:02:12.5]} 13. e5 {[%clk 0:02:43]} 13... Nd7 {[%clk 0:02:05.6]} 14. Be7
{[%clk 0:02:42.4]} 14... Nxe5 {[%clk 0:02:03.6]} 15. Bxf8 {[%clk 0:02:40.1]}
15... Bxf8 {[%clk 0:02:03.4]} 16. Nd1 {[%clk 0:02:02.1]} 16... Nc4 {[%clk
0:01:46.1]} 17. c3 {[%clk 0:01:58.5]} 17... Nxb2 {[%clk 0:01:36.1]} 18. Nxb2
{[%clk 0:01:59.4]} 18... Rxb2 {[%clk 0:01:36.1]} 19. Rab1 {[%clk 0:02:00]} 19...
Rb6 {[%clk 0:01:32.3]} 20. Rxb6 {[%clk 0:01:58.4]} 20... axb6 {[%clk 0:01:32.4]}
21. Rb1 {[%clk 0:01:52.1]} 21... Bc5 {[%clk 0:01:29.5]} 22. Qc2 {[%clk
0:01:45.6]} 22... Ba6 {[%clk 0:01:26.1]} 23. Bf1 {[%clk 0:01:45.4]} 23... Bxf1
{[%clk 0:01:25.7]} 24. Kxf1 {[%clk 0:01:46.3]} 24... h5 {[%clk 0:01:26.2]} 25.
a4 {[%clk 0:01:46.1]} 25... Qe5 {[%clk 0:01:24.4]} 26. Re1 {[%clk 0:01:41.3]}
26... Qf6 {[%clk 0:01:22.9]} 27. Kg2 {[%clk 0:01:34.2]} 27... Kg7 {[%clk
0:01:19]} 28. h4 {[%clk 0:01:34.2]} 28... e5 {[%clk 0:01:15.8]} 29. c4 {[%clk
0:01:25.4]} 29... e4 {[%clk 0:01:11.4]} 30. cxd5 {[%clk 0:01:21.4]} 30... Qf3+
{[%clk 0:01:09.1]} 31. Kf1 {[%clk 0:00:38]} 31... cxd5 {[%clk 0:01:06.4]} 32.
Qb2+ {[%clk 0:00:30.2]} 32... Kh7 {[%clk 0:00:57.7]} 33. a5 {[%clk 0:00:26.7]}
33... bxa5 {[%clk 0:00:49.2]} 34. Ra1 {[%clk 0:00:05.3]} 34... Qd3+ {[%clk
0:00:39.5]} 35. Kg2 {[%clk 0:00:04.3]} 35... Bd4 {[%clk 0:00:39.4]} 36. Qb7
{[%clk 0:00:02.7]} 36... Qf3+ {[%clk 0:00:38.3]} 37. Kh3 {[%clk 0:00:02.1]}
37... Qf5+ {[%clk 0:00:35.9]} 0-1